{"text_format":"1","workbook":"xlsx","n_sheets":3,"sheets":["TA IRC-CONTINENTE E RA MADEIRA","Cálculos","Alerta"],"not_rendered":{"charts":0,"images":2,"macros":1,"external_links":0,"defined_names":2,"comments":0,"pivot_tables":0},"unopened":[],"bounds":{"document_bytes":16777216,"sheet_cells":100000,"rows_first":2000,"rows_last":500,"rows_between":2000,"halvings":0,"cell_chars":16384,"cell_head_chars":4096},"cells_cut":0,"cells_raw":0,"read":"whole","date_system":"1900"}

{"sheet":"TA IRC-CONTINENTE E RA MADEIRA","index":0,"n_rows":64,"n_cols":9,"rows_kept":64,"cut":false,"hidden":true,"merged":[[21,2,21,8],[28,1,28,6],[27,1,27,6],[26,1,26,6],[54,6,54,8],[42,1,42,6],[31,1,31,7],[47,6,47,8],[41,1,41,6],[40,1,40,6],[38,1,38,6],[43,2,43,8],[46,6,46,8],[47,2,47,5],[39,1,39,6],[46,2,46,5],[0,2,0,9],[15,1,15,6],[14,1,14,6],[9,2,9,9],[1,2,1,8],[2,2,2,8],[12,2,12,7],[13,1,13,6],[6,2,6,8],[7,2,7,9],[8,2,8,9],[10,2,10,9],[11,2,11,8],[17,1,17,6],[16,1,16,6],[37,1,37,6],[36,1,36,6],[34,1,34,6],[33,1,33,6],[32,1,32,6],[35,1,35,7],[25,1,25,6],[24,1,24,6],[23,1,23,6],[22,1,22,6],[19,1,19,6],[20,1,20,6],[18,1,18,6],[29,1,29,6],[48,2,48,5],[54,2,54,3],[55,2,55,3],[48,6,48,8],[49,6,49,8],[50,6,50,8],[51,6,51,8],[52,6,52,8],[53,6,53,8],[53,2,53,5],[52,2,52,5],[63,2,63,8],[55,4,55,8],[51,2,51,5],[50,2,50,5],[49,2,49,5],[61,2,62,8],[60,2,60,8],[57,6,57,8]]}
[]
[null,null,"SIMULADOR DA TRIBUTAÇÃO AUTÓNOMA EM IRC 2021"]
[null,null,"- Continente e Região Autónoma da Madeira -"]
[null,null,"Nome:","Nome da Empresa"]
[null,null,"NIF:","NIF da Empresa"]
[]
[null,null,"Nota prévia:"]
[null,null,"As viaturas elétricas não estão sujeitas a tributação autónoma."]
[null,null,"Este simulador não inclui:                                                                                                                                                                                                O apuramento da tributação autónoma das entidades sujeitas ao imposto especial do jogo e ainda das entidades licenciadas na Zona Franca da Madeira;"]
[null,null,"O apuramento da tributação autónoma das entidades que não exercem, a título principal, atividade de natureza comercial, industrial ou agrícola."]
[null,null,"Também devem ser excluídas, para efeitos de cálculo de tributação autónoma, as despesas ou encargos de estabelecimento estável situado fora do território português e relativos à atividade exercida por seu intermédio."]
[null,null,"Dados para simulação"]
[null,null,"Período de tributação 2021"]
[null,"Lucro tributável *",null,null,null,null,null,null,0]
[null,"Prejuízo Fiscal *",null,null,null,null,null,null,0]
[null,"Empresa enquadrada no regime simplificado de IRC? * (S-Sim/N-Não)",null,null,null,null,null,null,"N"]
[null,"O período de tributação refere-se ao início de atividade ou ao período seguinte? * (S-Sim/N-Não)",null,null,null,null,null,null,"N"]
[null,"É uma cooperativa, micro ou pequena e média empresa? * (S-Sim/N-Não)",null,null,null,null,null,null,"N"]
[null,"O período de tributação refere-se ao segundo período de tributação seguinte ao início de atividade (3º período de atividade)? * (S-Sim/N-Não)",null,null,null,null,null,null,"N"]
[null,"Obteve lucro tributável num dos três períodos de tributação anteriores? * (S-Sim/N-Não)",null,null,null,null,null,null,"N"]
[null,"Entregou a Modelo 22 e IES dos períodos de tributação de 2019 e 2020 dentro do prazo legal? * (S-Sim/N-Não)",null,null,null,null,null,null,"N"]
[null,null,"ENCARGOS"]
[null,"Despesas não documentadas",null,null,null,null,null,null,0]
[null,"Despesas de representação",null,null,null,null,null,null,0]
[null,"Encargos efetuados ou suportados com ajudas de custo e/ou com “quilómetros”",null,null,null,null,null,null,0]
[null,"Importâncias pagas ou devidas a entidades não residentes sujeitas a um regime fiscal privilegiado",null,null,null,null,null,null,0]
[null,"Lucros distribuídos por entidades sujeitas a IRC a sujeitos passivos que beneficiam de isenção total ou parcial",null,null,null,null,null,null,0]
[null,"Por favor indique o imposto que tenha sido retido na fonte relativo a esses lucros",null,null,null,null,null,null,0]
[null,"Indemnização ou compensação por cessação de funções de gestor, administrador ou gerente",null,null,null,null,null,null,0]
[null,"Gastos ou encargos relativos a bónus e outras remunerações variáveis pagas a gestores, administradores ou gerentes",null,null,null,null,null,null,0]
[]
[null,"Encargos com viaturas ligeiras de passageiros, viaturas ligeiras de mercadorias referidas na alínea b) do n.º 1 do art.º 7.º do CISV, motos ou motociclos, com custo aquisição:"]
[null,"Inferior a € 27.500,00",null,null,null,null,null,null,0]
[null,"Igual ou superior a € 27.500,00 e inferior a € 35.000,00",null,null,null,null,null,null,0]
[null,"Igual ou superior a € 35.000,00",null,null,null,null,null,null,0]
[null,"Encargos com viaturas ligeiras de passageiros híbridas plug-in (autonomia 50km e emissões inferiores 50 g CO2/km), com custo aquisição:"]
[null,"Inferior a € 27.500,00",null,null,null,null,null,null,0]
[null,"Igual ou superior a € 27.500,00 e inferior a € 35.000,00",null,null,null,null,null,null,0]
[null,"Igual ou superior a € 35.000,00",null,null,null,null,null,null,0]
[null,"Encargos com viaturas ligeiras de passageiros movidas a GNV, com custo aquisição:"]
[null,"Inferior a € 27.500,00",null,null,null,null,null,null,0]
[null,"Igual ou superior a € 27.500,00 e inferior a € 35.000,00",null,null,null,null,null,null,0]
[null,"Igual ou superior a € 35.000,00",null,null,null,null,null,null,0]
[null,null,"Resultado da simulação"]
[]
[]
[null,null,"Despesas não documentadas",null,null,null,{"$f":"Cálculos!J29","v":0}]
[null,null,"Despesas de representação",null,null,null,{"$f":"Cálculos!J30","v":0}]
[null,null,"Encargos efetuados ou suportados com ajudas de custo e/ou com “quilómetros”",null,null,null,{"$f":"Cálculos!J31","v":0}]
[null,null,"Importâncias pagas ou devidas a entidades não residentes sujeitas a um regime fiscal privilegiado",null,null,null,{"$f":"Cálculos!J32","v":0}]
[null,null,"Lucros distribuídos por entidades sujeitas a IRC a sujeitos passivos que beneficiam de isenção total ou parcial",null,null,null,{"$f":"Cálculos!J33","v":0}]
[null,null,"Indemnização ou compensação por cessação de funções de gestor, administrador ou gerente",null,null,null,{"$f":"Cálculos!J34","v":0}]
[null,null,"Gastos ou encargos relativos a bónus e outras remunerações variáveis pagas a gestores, administradores ou gerentes",null,null,null,{"$f":"Cálculos!J35","v":0}]
[null,null,"Encargos com viaturas ligeiras de passageiros e viaturas de mercadorias referidas na alínea b) do n.º 1 do art.º 7º do CISV",null,null,null,{"$f":"Cálculos!J36","v":0}]
[]
[null,null,"Total da Tributação Autónoma",null,{"$f":"Cálculos!J39","v":0}]
[]
[null,null,null,"Data de simulação",null,null,{"$f":"TODAY()","v":"2022-03-23"}]
[]
[]
[null,null,"* Campos de preenchimento obrigatório."]
[null,null,"A Ordem não se responsabiliza por valores incorretos apurados, resultantes de erros na introdução de dados ou na interpretação das normas aplicáveis."]
[]
[null,null,"O utilizador deve manter o formato do ficheiro xlsm, não o devendo gravar em qualquer outro formato, pois pode alterar as fórmulas e os resultados obtidos. Não deve copiar dados numéricos ou alfanuméricos de outros ficheiros nem de qualquer outro modo formatar células do ficheiro."]

{"sheet":"Cálculos","index":1,"n_rows":39,"n_cols":10,"rows_kept":39,"cut":false,"hidden":true,"merged":[[29,1,29,6],[30,1,30,6],[38,1,38,6],[1,3,1,6],[24,1,24,4],[28,1,28,6]]}
[null,null,null,"Se \"RST = Sim\"","Se “ENCIA= Sim”","Se “ENCIA= Não” e “PF1=0”","Se “ENCIA= Não” e “PF1> 0 ”",null,null,"Versão 1"]
[null,null,"Valores","Taxas",null,null,null,"P1",{"$f":"IF('TA IRC-CONTINENTE E RA MADEIRA'!I17=\"S\",\"Sim\",IF('TA IRC-CONTINENTE E RA MADEIRA'!I17=\"N\",\"Não\",\"Erro\"))","v":"Não"}]
[null,"LT1",{"$f":"'TA IRC-CONTINENTE E RA MADEIRA'!I14","v":0},null,null,null,null,"P2",{"$f":"IF('TA IRC-CONTINENTE E RA MADEIRA'!I18=\"S\",\"Sim\",IF('TA IRC-CONTINENTE E RA MADEIRA'!I18=\"N\",\"Não\",\"Erro\"))","v":"Não"}]
[null,"PF1",{"$f":"'TA IRC-CONTINENTE E RA MADEIRA'!I15","v":0},null,null,null,null,"P3",{"$f":"IF('TA IRC-CONTINENTE E RA MADEIRA'!I19=\"S\",\"Sim\",IF('TA IRC-CONTINENTE E RA MADEIRA'!I19=\"N\",\"Não\",\"Erro\"))","v":"Não"}]
[null,"RST",{"$f":"IF('TA IRC-CONTINENTE E RA MADEIRA'!I16=\"S\",\"Sim\",IF('TA IRC-CONTINENTE E RA MADEIRA'!I16=\"N\",\"Não\",\"Erro\"))","v":"Não"},null,null,null,null,"P4",{"$f":"IF('TA IRC-CONTINENTE E RA MADEIRA'!I20=\"S\",\"Sim\",IF('TA IRC-CONTINENTE E RA MADEIRA'!I20=\"N\",\"Não\",\"Erro\"))","v":"Não"}]
[null,"ENCIA","Não",null,null,null,null,"P5",{"$f":"IF('TA IRC-CONTINENTE E RA MADEIRA'!I21=\"S\",\"Sim\",IF('TA IRC-CONTINENTE E RA MADEIRA'!I21=\"N\",\"Não\",\"Erro\"))","v":"Não"}]
[null,"DND",{"$f":"'TA IRC-CONTINENTE E RA MADEIRA'!I23","v":0},0.5,0.7,0.5,0.6,"Todos",{"$f":"IF(I2=\"Sim\",\"Sim\",IF(AND(I3=\"Sim\",I5=\"Sim\",I6=\"Sim\"),\"Sim\",IF(AND(I3=\"Sim\",I4=\"Sim\"),\"Sim\",\"Não\")))","v":"Não"}]
[null,"DRP",{"$f":"'TA IRC-CONTINENTE E RA MADEIRA'!I24","v":0},null,0.1,0.1,0.2]
[null,"DAK",{"$f":"'TA IRC-CONTINENTE E RA MADEIRA'!I25","v":0},null,0.05,0.05,0.15]
[null,"IPPF",{"$f":"'TA IRC-CONTINENTE E RA MADEIRA'!I26","v":0},0.35,0.55000000000000004,0.35,0.45]
[null,"LDI",{"$f":"'TA IRC-CONTINENTE E RA MADEIRA'!I27","v":0},null,0.23,0.23,0.33]
[null,"IRF",{"$f":"'TA IRC-CONTINENTE E RA MADEIRA'!I28","v":0}]
[null,"ICG",{"$f":"'TA IRC-CONTINENTE E RA MADEIRA'!I29","v":0},null,null,0.35,0.45]
[null,"GBG",{"$f":"'TA IRC-CONTINENTE E RA MADEIRA'!I30","v":0},null,null,0.35,0.45]
[null,"EVL25",{"$f":"'TA IRC-CONTINENTE E RA MADEIRA'!I33","v":0},0.1,null,0.1,0.2]
[null,"EVL2535",{"$f":"'TA IRC-CONTINENTE E RA MADEIRA'!I34","v":0},0.27500000000000002,null,0.27500000000000002,0.375]
[null,"EVL35",{"$f":"'TA IRC-CONTINENTE E RA MADEIRA'!I35","v":0},0.35,null,0.35,0.45]
[null,"EVPI25",{"$f":"'TA IRC-CONTINENTE E RA MADEIRA'!I37","v":0},0.05,null,0.05,0.15]
[null,"EVPI2535",{"$f":"'TA IRC-CONTINENTE E RA MADEIRA'!I38","v":0},0.1,null,0.1,0.2]
[null,"EVPI35",{"$f":"'TA IRC-CONTINENTE E RA MADEIRA'!I39","v":0},0.17499999999999999,null,0.17499999999999999,0.27500000000000002]
[null,"EVGPL25",{"$f":"'TA IRC-CONTINENTE E RA MADEIRA'!I41","v":0},7.4999999999999997E-2,null,7.4999999999999997E-2,0.17499999999999999]
[null,"EVGPL2535",{"$f":"'TA IRC-CONTINENTE E RA MADEIRA'!I42","v":0},0.15,null,0.15,0.25]
[null,"EVGPL35",{"$f":"'TA IRC-CONTINENTE E RA MADEIRA'!I43","v":0},0.27500000000000002,null,0.27500000000000002,0.375]
[]
[null,"Campos de Preenchimento Obrigatório Vazios:",null,null,null,{"$f":"IF(AND(C5=\"Sim\",'TA IRC-CONTINENTE E RA MADEIRA'!I15>0),\"Incompatibilidade entre o regime simplificado e a existência de “Prejuízo fiscal”\",IF(AND('TA IRC-CONTINENTE E RA MADEIRA'!I14>0,'TA IRC-CONTINENTE E RA MADEIRA'!I15<>0),\"Incompatibilidade entre os valores dos campos “Lucro Tributável” e “Prejuízo fiscal”\",IF(AND('TA IRC-CONTINENTE E RA MADEIRA'!I14<>0,'TA IRC-CONTINENTE E RA MADEIRA'!I15>0),\"Incompatibilidade entre os valores dos campos “Lucro Tributável” e “Prejuízo fiscal”\",IF('TA IRC-CONTINENTE E RA MADEIRA'!I28>'TA IRC-CONTINENTE E RA MADEIRA'!I27,\"Por favor verifique os valores introduzidos “Lucros pagos” e “Retenção na fonte”\",IF(ISBLANK('TA IRC-CONTINENTE E RA MADEIRA'!I16),\"Por favor verifique os valores introduzidos\",IF(OR(ISBLANK('TA IRC-CONTINENTE E RA MADEIRA'!I14),ISBLANK('TA IRC-CONTINENTE E RA MADEIRA'!I15),ISBLANK('TA IRC-CONTINENTE E RA MADEIRA'!I17),ISBLANK('TA IRC-CONTINENTE E RA MADEIRA'!I21),ISBLANK('TA IRC-CONTINENTE E RA MADEIRA'!I18),ISBLANK('TA IRC-CONTINENTE E RA MADEIRA'!I19),ISBLANK('TA IRC-CONTINENTE E RA MADEIRA'!I20)),\"Por favor verifique os valores introduzidos\",IF(AND(ISBLANK('TA IRC-CONTINENTE E RA MADEIRA'!I27),NOT(ISBLANK('TA IRC-CONTINENTE E RA MADEIRA'!I28))),\"Por favor verifique os valores introduzidos “Lucros pagos” e “Retenção na fonte”\",IF(AND(NOT(ISBLANK('TA IRC-CONTINENTE E RA MADEIRA'!I27)),ISBLANK('TA IRC-CONTINENTE E RA MADEIRA'!I28)),\"Por favor verifique os valores introduzidos “Lucros pagos” e “Retenção na fonte”\",\"OK\"))))))))","v":"OK"}]
[]
[null,{"$f":"IF(C5=\"Sim\",\"Regime simplificado - Tributação autónoma:\",IF(C6=\"Sim\",\"Entidade que não exerce a título principal atividade de natureza comercial, industrial ou agrícola - Tributação autónoma:\",IF(AND(C6=\"Não\",C4=0),\"Entidade que exerce a título principal atividade de natureza comercial, industrial ou agrícola – Regime geral -Tributação autónoma:\",IF(AND(C6=\"Não\",C4>0),\"Entidade que exerce a título principal atividade de natureza comercial, industrial ou agrícola – Regime geral -Tributação autónoma:\",\"\"))))","v":"Entidade que exerce a título principal atividade de natureza comercial, industrial ou agrícola – Regime geral -Tributação autónoma:"}]
[]
[null,"Despesas não documentadas",null,null,null,null,null,null,"TDND",{"$f":"IF(F25=\"OK\",IF(C5=\"Sim\",C7*D7,IF(C6=\"Sim\",C7*E7,IF(AND(C6=\"Não\",C4=0),C7*F7,IF(AND(C6=\"Não\",C4>0,I7=\"Sim\"),C7*F7,IF(AND(C6=\"Não\",C4>0,I7=\"Não\"),C7*G7,\"\"))))),\"\")","v":0}]
[null,"Despesas de representação",null,null,null,null,null,null,"TDRP",{"$f":"IF(F25=\"OK\",IF(C5=\"Sim\",\"Não aplicável\",IF(C6=\"Sim\",C8*E8,IF(AND(C6=\"Não\",C4=0),C8*F8,IF(AND(C6=\"Não\",C4>0,I7=\"Sim\"),C8*F8,IF(AND(C6=\"Não\",C4>0,I7=\"Não\"),C8*G8,\"\"))))),\"\")","v":0}]
[null,"Encargos efetuados ou suportados com ajudas de custo e/ou com “quilómetros”",null,null,null,null,null,null,"TDAK",{"$f":"IF(F25=\"OK\",IF(C5=\"Sim\",\"Não aplicável\",IF(C6=\"Sim\",C9*E9,IF(AND(C6=\"Não\",C4=0),C9*F9,IF(AND(C6=\"Não\",C4>0,I7=\"Sim\"),C9*F9,IF(AND(C6=\"Não\",C4>0,I7=\"Não\"),C9*G9,\"\"))))),\"\")","v":0}]
[null,"Importâncias pagas ou devidas a entidades não residentes sujeitas a um regime fiscal privilegiado",null,null,null,null,null,null,"TIPPF",{"$f":"IF(F25=\"OK\",IF(C5=\"Sim\",C10*D10,IF(C6=\"Sim\",C10*E10,IF(AND(C6=\"Não\",C4=0),C10*F10,IF(AND(C6=\"Não\",C4>0,I7=\"Sim\"),C10*F10,IF(AND(C6=\"Não\",C4>0,I7=\"Não\"),C10*G10,\"\"))))),\"\")","v":0}]
[null,"Lucros distribuídos por entidades sujeitas a IRC a sujeitos passivos que beneficiam de isenção total ou parcial",null,null,null,null,null,{"$f":"IF(F25=\"OK\",IF(C5=\"Sim\",\"Não aplicável\",IF(C6=\"Sim\",IF(ISBLANK('TA IRC-CONTINENTE E RA MADEIRA'!I27),0,IF(AND('TA IRC-CONTINENTE E RA MADEIRA'!I27>=0,'TA IRC-CONTINENTE E RA MADEIRA'!I28>=0),(C11*E11)-C12,\"Por favor indique o imposto que tenha sido retido na fonte relativo a esses lucros\")),IF(AND(C6=\"Não\",C4=0),IF(ISBLANK('TA IRC-CONTINENTE E RA MADEIRA'!I27),0,IF(AND('TA IRC-CONTINENTE E RA MADEIRA'!I27>=0,'TA IRC-CONTINENTE E RA MADEIRA'!I28>=0),(C11*F11)-C12,\"Por favor indique o imposto que tenha sido retido na fonte relativo a esses lucros\")),IF(AND(C6=\"Não\",C4>0,I7=\"Sim\"),IF(ISBLANK('TA IRC-CONTINENTE E RA MADEIRA'!I27),0,IF(AND('TA IRC-CONTINENTE E RA MADEIRA'!I27>=0,'TA IRC-CONTINENTE E RA MADEIRA'!I28>=0),(C11*F11)-C12,\"Por favor indique o imposto que tenha sido retido na fonte relativo a esses lucros\")),IF(AND(C6=\"Não\",C4>0,I7=\"Não\"),IF(ISBLANK('TA IRC-CONTINENTE E RA MADEIRA'!I27),0,IF(AND('TA IRC-CONTINENTE E RA MADEIRA'!I27>=0,'TA IRC-CONTINENTE E RA MADEIRA'!I28>=0),(C11*G11)-C12,\"Por favor indique o imposto que tenha sido retido na fonte relativo a esses lucros\")),\"\"))))),\"\")","v":0},"TLDI",{"$f":"IF(H33<0,0,IF(F25=\"OK\",IF(C5=\"Sim\",\"Não aplicável\",IF(C6=\"Sim\",IF(ISBLANK('TA IRC-CONTINENTE E RA MADEIRA'!I27),0,IF(AND('TA IRC-CONTINENTE E RA MADEIRA'!I27>=0,'TA IRC-CONTINENTE E RA MADEIRA'!I28>=0),(C11*E11)-C12,\"Por favor indique o imposto que tenha sido retido na fonte relativo a esses lucros\")),IF(AND(C6=\"Não\",C4=0),IF(ISBLANK('TA IRC-CONTINENTE E RA MADEIRA'!I27),0,IF(AND('TA IRC-CONTINENTE E RA MADEIRA'!I27>=0,'TA IRC-CONTINENTE E RA MADEIRA'!I28>=0),(C11*F11)-C12,\"Por favor indique o imposto que tenha sido retido na fonte relativo a esses lucros\")),IF(AND(C6=\"Não\",C4>0,I7=\"Sim\"),IF(ISBLANK('TA IRC-CONTINENTE E RA MADEIRA'!I27),0,IF(AND('TA IRC-CONTINENTE E RA MADEIRA'!I27>=0,'TA IRC-CONTINENTE E RA MADEIRA'!I28>=0),(C11*F11)-C12,\"Por favor indique o imposto que tenha sido retido na fonte relativo a esses lucros\")),IF(AND(C6=\"Não\",C4>0,I7=\"Não\"),IF(ISBLANK('TA IRC-CONTINENTE E RA MADEIRA'!I27),0,IF(AND('TA IRC-CONTINENTE E RA MADEIRA'!I27>=0,'TA IRC-CONTINENTE E RA MADEIRA'!I28>=0),(C11*G11)-C12,\"Por favor indique o imposto que tenha sido retido na fonte relativo a esses lucros\")),\"\"))))),\"\"))","v":0}]
[null,"Indemnização ou compensação por cessação de funções de gestor, administrador ou gerente",null,null,null,null,null,null,"TICG",{"$f":"IF(F25=\"OK\",IF(C5=\"Sim\",\"Não aplicável\",IF(C6=\"Sim\",\"Não aplicável\",IF(AND(C6=\"Não\",C4=0),C13*F13,IF(AND(C6=\"Não\",C4>0,I7=\"Sim\"),C13*F13,IF(AND(C6=\"Não\",C4>0,I7=\"Não\"),C13*G13,\"\"))))),\"\")","v":0}]
[null,"Gastos ou encargos relativos a bónus e outras remunerações variáveis pagas a gestores, administradores ou gerentes",null,null,null,null,null,null,"TGBG",{"$f":"IF(F25=\"OK\",IF(C5=\"Sim\",\"Não aplicável\",IF(C6=\"Sim\",\"Não aplicável\",IF(AND(C6=\"Não\",C4=0),C14*F14,IF(AND(C6=\"Não\",C4>0,I7=\"Sim\"),C14*F14,IF(AND(C6=\"Não\",C4>0,I7=\"Não\"),C14*G14,\"\"))))),\"\")","v":0}]
[null,"Encargos com viaturas ligeiras de passageiros e viaturas de mercadorias referidas na alínea b) do n.º 1 do art.º 7º do CISV",null,null,null,null,null,null,"TEV",{"$f":"IF(F25=\"OK\",IF(C5=\"Sim\",(C15*D15)+(C16*D16)+(C17*D17)+(C18*D18)+(C19*D19)+(C20*D20)+(C21*D21)+(C22*D22)+(C23*D23),IF(C6=\"Sim\",\"Não aplicável\",IF(AND(C6=\"Não\",C4=0),(C15*F15)+(C16*F16)+(C17*F17)+(C18*F18)+(C19*F19)+(C20*F20)+(C21*F21)+(C22*F22)+(C23*F23),IF(AND(C6=\"Não\",C4>0,I7=\"Sim\"),(C15*F15)+(C16*F16)+(C17*F17)+(C18*F18)+(C19*F19)+(C20*F20)+(C21*F21)+(C22*F22)+(C23*F23),IF(AND(C6=\"Não\",C4>0,I7=\"Não\"),(C15*G15)+(C16*G16)+(C17*G17)+(C18*G18)+(C19*G19)+(C20*G20)+(C21*G21)+(C22*G22)+(C23*G23),\"\"))))),\"\")","v":0}]
[]
[]
[null,"Total da tributação autónoma",null,null,null,null,null,null,"TA",{"$f":"IF(F25=\"OK\",IF(ISERROR(IF(C5=\"Sim\",J29+J32+J36,IF(C6=\"Sim\",J29+J30+J31+J32+J33,IF(AND(C6=\"Não\",C4=0),J29+J30+J31+J32+J33+J34+J35+J36,IF(AND(C6=\"Não\",C4>0),J29+J30+J31+J32+J33+J34+J35+J36,\"\"))))),\"Por favor verifique os valores introduzidos\",IF(C5=\"Sim\",J29+J32+J36,IF(C6=\"Sim\",J29+J30+J31+J32+J33,IF(AND(C6=\"Não\",C4=0),J29+J30+J31+J32+J33+J34+J35+J36,IF(AND(C6=\"Não\",C4>0),J29+J30+J31+J32+J33+J34+J35+J36,\"\"))))),F25)","v":0}]

{"sheet":"Alerta","index":2,"n_rows":13,"n_cols":2,"rows_kept":13,"cut":false,"hidden":false,"merged":[[0,1,0,6],[1,1,1,6],[5,1,5,6],[12,1,13,5]]}
[]
[null,"Simulador"]
[]
[]
[]
[null,"Para utilizar o simulador deverá ativar as macros."]
[]
[]
[]
[]
[]
[]
[null,"Ficheiro compatível apenas com versões posteriores a Microsoft Office Excel 2007 e em formato Livro com Permissão para Macros do Excel (*.xlsm)"]